fUSD/lending_fUSD_20240408
["ID","MTS","AMOUNT","RATE_DAILY","PERIOD"]
[321818252,1712535078124,-1062.13,0.00020979,2]
[321818253,1712535078136,-500.0,0.00020979,2]
[321818254,1712535078146,-500.0,0.00020979,2]
[321818255,1712535078158,-535.89,0.00020979,2]
[321818256,1712535078168,-535.89,0.00020979,2]
[321818257,1712535078354,-500.0,0.00020979,2]
[321818258,1712535078364,-500.0,0.00020979,2]
[321818259,1712535078373,-500.0,0.00020979,2]
[321818260,1712535078384,-500.0,0.00020979,2]
[321818261,1712535078394,-500.0,0.00020979,2]
[321818262,1712535078403,-500.0,0.00020979,2]
[321818263,1712535078413,-176.5552363,0.00020979,2]
[321818264,1712535078423,-527.25,0.00020979,2]
[321818265,1712535078433,-527.25,0.00020979,2]
[321818266,1712535078443,-500.0,0.00020979,2]
[321818267,1712535078454,-500.0,0.00020979,2]
[321818268,1712535078465,-500.0,0.00020979,2]
[321818269,1712535078474,-500.0,0.00020979,2]
[321818270,1712535078484,-1003.44,0.00020979,2]
[321818271,1712535078494,-1003.44,0.00020979,2]
[321818272,1712535078503,-801.24,0.00020979,2]
[321818273,1712535078512,-801.24,0.00020979,2]
[321818274,1712535078522,-525.95,0.00020979,2]
[321818275,1712535078532,-525.95,0.00020979,2]
[321818276,1712535078542,-564.8,0.00020979,2]
[321818277,1712535078551,-564.8,0.00020979,2]
[321818278,1712535078561,-521.37,0.00020979,2]
[321818279,1712535078571,-521.37,0.00020979,2]
[321818280,1712535078581,-571.63,0.00020979,2]
[321818281,1712535078590,-571.63,0.00020979,2]
[321818282,1712535078600,-500.0,0.00020979,2]
[321818283,1712535078610,-500.0,0.00020979,2]
[321818284,1712535078619,-500.0,0.00020979,2]
[321818285,1712535078628,-500.0,0.00020979,2]
[321818286,1712535078638,-715.84,0.00020979,2]
[321818287,1712535078648,-715.84,0.00020979,2]
[321818288,1712535078658,-288.78973177,0.00020979,2]
[321818289,1712535078668,-500.0,0.00020979,2]
[321818290,1712535078677,-500.0,0.00020979,2]
[321818291,1712535078686,-789.26,0.00020979,2]
[321818292,1712535078696,-789.26,0.00020979,2]
[321818293,1712535078706,-836.15,0.00020979,2]
[321818294,1712535078715,-836.15,0.00020979,2]
[321818295,1712535078724,-500.0,0.00020979,2]
[321818296,1712535078733,-500.0,0.00020979,2]
[321818297,1712535078742,-500.0,0.00020984,2]
[321818298,1712535078753,-500.0,0.00020984,2]
[321818299,1712535078763,-500.0,0.00020984,2]
[321818300,1712535078772,-500.0,0.00020984,2]
[321818301,1712535078781,-10873.69,0.00020984,2]
[321818302,1712535078791,-748.18,0.00020984,2]
[321818303,1712535078800,-661.49,0.00020984,2]
[321818304,1712535078810,-1719.47,0.00020984,2]
[321818305,1712535078819,-3029.88,0.00020984,2]
[321818306,1712535078829,-2416.65,0.00020984,2]
[321818307,1712535078838,-1155.6,0.00020984,2]
[321818308,1712535078848,-1836.01,0.00020984,2]
[321818309,1712535078858,-585.41,0.00020984,2]
[321818310,1712535078867,-734.63,0.00020992,2]
[321818311,1712535078878,-1746.48,0.00020992,2]
[321818312,1712535078888,-536.12,0.00020992,2]
[321818313,1712535078898,-650.47,0.00020992,2]
[321818314,1712535078907,-907.46,0.00020992,2]
[321818315,1712535078918,-906.6,0.00020992,2]
[321818316,1712535078928,-500.0,0.00020992,2]
[321818317,1712535078938,-536.65,0.00020992,2]
[321818318,1712535078948,-500.0,0.00020992,2]
[321818319,1712535078963,-500.0,0.00020992,2]
[321818320,1712535078974,-585.03,0.00020992,2]
[321818321,1712535078985,-500.0,0.00020993,2]
[321818322,1712535078996,-710.83,0.00020993,2]
[321818323,1712535079007,-783.53,0.00020993,2]
[321818324,1712535079017,-318.90196723,0.00020993,2]
[321818325,1712535079030,-500.0,0.00020993,2]
[321818326,1712535079050,-500.0,0.00020993,2]
[321818327,1712535079061,-270.94087791,0.00020993,2]
[321818328,1712535079071,-1962.23,0.00020993,2]
[321818329,1712535079082,-500.0,0.00020993,2]
[321818330,1712535079092,-500.0,0.00020993,2]
[321818331,1712535079105,-500.0,0.00020993,2]
[321818332,1712535079114,-500.0,0.00020993,2]
[321818333,1712535079124,-324.80637791,0.00020993,2]
[321818334,1712535079135,-500.0,0.00020993,2]
[321818335,1712535079146,-500.0,0.00020993,2]
[321818336,1712535079155,-500.0,0.00020993,2]
[321818337,1712535079165,-511.07,0.00020993,2]
[321818338,1712535079175,-500.0,0.00020993,2]
[321818339,1712535079185,-593.78,0.00020993,2]
[321818340,1712535079194,-500.0,0.00020993,2]
[321818341,1712535079204,-852.97,0.00020993,2]
[321818342,1712535079218,-500.0,0.00020993,2]
[321818343,1712535079228,-1509.51,0.00020993,2]
[321818344,1712535079237,-574.01,0.00020993,2]
[321818345,1712535079247,-500.0,0.00020993,2]
[321818346,1712535079256,-322.2498759,0.00020993,2]
[321818347,1712535079266,-1041.25,0.00020993,2]
[321818348,1712535079275,-717.66,0.00020993,2]
[321818349,1712535079285,-500.0,0.00020993,2]
[321818350,1712535079295,-500.0,0.00020993,2]
[321818351,1712535079304,-640.58,0.00020993,2]
[321818352,1712535079314,-609.55,0.00020993,2]
[321818353,1712535079323,-512.19,0.00020993,2]
[321818354,1712535079332,-10873.69,0.00020993,2]
[321818355,1712535079341,-627.87,0.00020993,2]
[321818356,1712535079351,-896.77,0.00020993,2]
[321818357,1712535079360,-500.0,0.00020993,2]
[321818358,1712535079370,-500.0,0.00020993,2]
[321818359,1712535079379,-1066.58,0.00020993,2]
[321818360,1712535079388,-1434.23,0.00020993,2]
[321818361,1712535079397,-748.18,0.00020993,2]
[321818362,1712535079407,-875.29,0.00020993,2]
[321818363,1712535079416,-500.0,0.00020993,2]
[321818364,1712535079425,-500.0,0.00020993,2]
[321818365,1712535079435,-891.34,0.00020993,2]
[321818366,1712535079444,-2541.03,0.00020993,2]
[321818367,1712535079454,-7248.38,0.00020993,2]
[321818368,1712535079467,-661.49,0.00020993,2]
[321818369,1712535079476,-962.44,0.00020993,2]
[321818370,1712535079485,-500.0,0.00020993,2]
[321818371,1712535079494,-1719.47,0.00020993,2]
[321818372,1712535079503,-2506.69,0.00020993,2]
[321818373,1712535079513,-2506.69,0.00020993,2]
[321818374,1712535079522,-2506.69,0.00020993,2]
[321818375,1712535079532,-2506.69,0.00020993,2]
[321818376,1712535079541,-2506.7708838,0.00020993,2]
[321818377,1712535079550,-636.92,0.00020993,2]
[321818378,1712535079559,-500.0,0.00020993,2]
[321818379,1712535079571,-500.0,0.00020993,2]
[321818380,1712535079580,-500.0,0.00020993,2]
[321818381,1712535079590,-500.0,0.00020993,2]
[321818382,1712535079599,-1540.86,0.00020993,2]
[321818383,1712535079608,-196.60555696,0.00020993,2]
[321818384,1712535079617,-500.0,0.00020993,2]
[321818385,1712535079627,-733.61,0.00020993,2]
[321818386,1712535079637,-861.16,0.00020993,2]
[321818387,1712535079646,-500.0,0.00020993,2]
[321818388,1712535079656,-2324.05,0.00020993,2]
[321818389,1712535079666,-593.4,0.00020993,2]
[321818390,1712535079675,-580.64,0.00020993,2]
[321818391,1712535079685,-3029.88,0.00020993,2]
[321818392,1712535079694,-540.28,0.00020993,2]
[321818393,1712535079703,-1657.25,0.00020993,2]
[321818394,1712535079715,-6756.44,0.00020993,2]
[321818395,1712535079724,-759.96,0.00020993,2]
[321818396,1712535079733,-1227.4,0.00020993,2]
[321818397,1712535079743,-4347.9,0.00020993,2]
[321818398,1712535079752,-1275.98,0.00020993,2]
[321818399,1712535079761,-2293.84,0.00020993,2]
[321818400,1712535079770,-1398.31,0.00020993,2]
[321818401,1712535079779,-734.63,0.00020993,2]
[321818402,1712535079788,-569.48,0.00020993,2]
[321818403,1712535079798,-1077.86,0.00020993,2]
[321818404,1712535079807,-510.77,0.00020993,2]
[321818405,1712535079817,-1717.18,0.00020993,2]
[321818406,1712535079826,-500.0,0.00020993,2]
[321818407,1712535079835,-2416.65,0.00020993,2]
[321818408,1712535079844,-1235.12,0.00020993,2]
[321818409,1712535079854,-1288.68,0.00020993,2]
[321818410,1712535079863,-1746.48,0.00020993,2]
[321818411,1712535079873,-1163.7,0.00020993,2]
[321818412,1712535079882,-1081.21,0.00020993,2]
[321818413,1712535079892,-661.89,0.00020993,2]
[321818414,1712535079901,-661.89,0.00020993,2]
[321818415,1712535079910,-1118.84,0.00020993,2]
[321818416,1712535079920,-661.89,0.00020993,2]
[321818417,1712535079929,-661.89,0.00020993,2]
[321818418,1712535079938,-661.90881323,0.00020993,2]
[321818419,1712535079947,-1247.66,0.00020993,2]
[321818420,1712535079956,-536.12,0.00020993,2]
[321818421,1712535079966,-5304.16,0.00020993,2]
[321818422,1712535079976,-2373.37,0.00020993,2]
[321818423,1712535079985,-1155.6,0.00020993,2]
[321818424,1712535079995,-760.84,0.00020993,2]
[321818425,1712535080004,-760.84,0.00020993,2]
[321818426,1712535080014,-760.84,0.00020993,2]
[321818427,1712535080025,-760.84,0.00020993,2]
[321818428,1712535080034,-760.84314494,0.00020993,2]
[321818429,1712535080044,-1195.89,0.00020993,2]
[321818430,1712535080054,-2845.12,0.00020993,2]
[321818431,1712535080065,-650.47,0.00020993,2]
[321818432,1712535080075,-907.46,0.00020993,2]
[321818433,1712535080086,-848.54,0.00020993,2]
[321818434,1712535080097,-1836.01,0.00020993,2]
[321818435,1712535080108,-906.6,0.00020993,2]
[321818436,1712535080118,-23118.59,0.00020993,2]
[321818437,1712535080128,-500.0,0.00020993,2]
[321818438,1712535080141,-837.59,0.00020993,2]
[321818439,1712535080152,-503.61,0.00020993,2]
[321818440,1712535080162,-503.61,0.00020993,2]
[321818441,1712535080173,-503.61,0.00020993,2]
[321818442,1712535080184,-503.61,0.00020993,2]
[321818443,1712535080196,-536.65,0.00020993,2]
[321818444,1712535080211,-503.79563268,0.00020993,2]
[321818445,1712535080221,-1734.33,0.00020993,2]
[321818446,1712535080231,-5417.99,0.00020993,2]
[321818447,1712535080241,-5417.99,0.00020993,2]
[321818448,1712535080250,-5417.99,0.00020993,2]
[321818449,1712535080260,-5417.99,0.00020993,2]
[321818450,1712535080270,-5418.15885609,0.00020993,2]
[321818451,1712535080280,-500.0,0.00020993,2]
[321818452,1712535080290,-3794.74,0.00020993,2]
[321818453,1712535080300,-827.08,0.00020993,2]
[321818454,1712535080310,-1140.46,0.00020993,2]
[321818455,1712535080320,-957.53,0.00020993,2]
[321818456,1712535080330,-500.0,0.00020993,2]
[321818457,1712535080340,-1634.53,0.00020993,2]
[321818458,1712535080350,-1225.9,0.00020993,2]
[321818459,1712535080360,-845.54,0.00020993,2]
[321818460,1712535080370,-2272.28,0.00020993,2]
[321818461,1712535080380,-585.03,0.00020993,2]
[321818462,1712535080390,-585.41,0.00020993,2]
[321818463,1712535080400,-28341.9600617,0.00020994,2]
[321818464,1712535080410,-500.0,0.00020994,2]
[321818465,1712535080419,-331.36358521,0.00020994,2]
[321818466,1712535080428,-14140.550807,0.00020994,2]
[321818467,1712535080438,-710.83,0.00020994,2]
[321818468,1712535080448,-710.83,0.00020994,2]
[321818469,1712535080461,-783.53,0.00020994,2]
[321818470,1712535080470,-783.53,0.00020994,2]
[321818471,1712535080479,-500.0,0.00020994,2]
[321818472,1712535080489,-432.70924215,0.00020994,2]
[321818473,1712535080499,-500.0,0.00020994,2]
[321818474,1712535080508,-500.0,0.00020994,2]
[321818475,1712535080518,-1962.23,0.00020994,2]
[321818476,1712535080528,-1962.23,0.00020994,2]
[321818477,1712535080537,-500.0,0.00020994,2]
[321818478,1712535080547,-500.0,0.00020994,2]
[321818479,1712535080556,-500.0,0.00020994,2]
[321818480,1712535080566,-500.0,0.00020994,2]
[321818481,1712535080576,-500.0,0.00020994,2]
[321818482,1712535080585,-500.0,0.00020994,2]
[321818483,1712535080594,-500.0,0.00020994,2]
[321818484,1712535080604,-500.0,0.00020994,2]
[321818485,1712535080614,-500.0,0.00020994,2]
[321818486,1712535080624,-500.0,0.00020994,2]
[321818487,1712535080633,-500.0,0.00020994,2]
[321818488,1712535080642,-500.0,0.00020994,2]
[321818489,1712535080652,-500.0,0.00020994,2]
[321818490,1712535080661,-334.58,0.00020994,2]
[321818491,1712535080671,-511.07,0.00020994,2]
[321818492,1712535080681,-511.07,0.00020994,2]
[321818493,1712535080690,-500.0,0.00020994,2]
[321818494,1712535080700,-500.0,0.00020994,2]
[321818495,1712535080712,-593.78,0.00020994,2]
[321818496,1712535080721,-593.78,0.00020994,2]
[321818497,1712535080730,-500.0,0.00020994,2]
[321818498,1712535080739,-500.0,0.00020994,2]
[321818499,1712535080750,-852.97,0.00020994,2]
[321818500,1712535080761,-852.97,0.00020994,2]
[321818501,1712535080772,-500.0,0.00020994,2]
[321818502,1712535080782,-500.0,0.00020994,2]
[321818503,1712535080793,-1509.51,0.00020994,2]
[321818504,1712535080857,-1509.51,0.00020994,2]
[321818505,1712535080866,-574.01,0.00020994,2]
[321818506,1712535080876,-574.01,0.00020994,2]
[321818507,1712535080886,-500.0,0.00020994,2]
[321818508,1712535080895,-500.0,0.00020994,2]
[321818509,1712535080905,-1041.25,0.00020994,2]
[321818510,1712535080914,-1041.25,0.00020994,2]
[321818511,1712535080923,-717.66,0.00020994,2]
[321818512,1712535080933,-717.66,0.00020994,2]
[321818513,1712535080942,-500.0,0.00020994,2]
[321818514,1712535080951,-500.0,0.00020994,2]
[321818515,1712535080963,-500.0,0.00020994,2]
[321818516,1712535080972,-500.0,0.00020994,2]
[321818517,1712535080981,-500.0,0.00020994,2]
[321818518,1712535080990,-500.0,0.00020994,2]
[321818519,1712535081000,-492.12959195,0.00020994,2]
[321818520,1712535081010,-500.0,0.00020994,2]
[321818521,1712535081019,-640.58,0.00020994,2]
[321818522,1712535081028,-609.55,0.00020994,2]
[321818523,1712535081038,-609.55,0.00020994,2]
[321818524,1712535081047,-640.58,0.00020994,2]
[321818525,1712535081057,-609.55,0.00020994,2]
[321818526,1712535081067,-609.55,0.00020994,2]
[321818527,1712535081077,-609.55,0.00020994,2]
[321818528,1712535081087,-609.55,0.00020994,2]
[321818529,1712535081098,-512.19,0.00020994,2]
[321818530,1712535081108,-609.55,0.00020994,2]
[321818531,1712535081118,-609.6737994,0.00020994,2]
[321818532,1712535081130,-10873.69,0.00020994,2]
[321818533,1712535081140,-627.87,0.00020994,2]
[321818534,1712535081150,-10873.69,0.00020994,2]
[321818535,1712535081160,-627.87,0.00020994,2]
[321818536,1712535081170,-896.77,0.00020994,2]
[321818537,1712535081180,-896.77,0.00020994,2]
[321818538,1712535081190,-500.0,0.00020994,2]
[321818539,1712535081200,-500.0,0.00020994,2]
[321818540,1712535081215,-500.0,0.00020994,2]
[321818541,1712535081225,-259.4935652,0.00020994,2]
[321818542,1712535081235,-500.0,0.00020994,2]
[321818543,1712535081245,-1066.58,0.00020994,2]
[321818544,1712535081255,-500.0,0.00020994,2]
[321818545,1712535081265,-1066.58,0.00020994,2]
[321818546,1712535081275,-1434.23,0.00020994,2]
[321818547,1712535081285,-1434.23,0.00020994,2]
[321818548,1712535081294,-748.18,0.00020994,2]
[321818549,1712535081304,-748.18,0.00020994,2]
[321818550,1712535081314,-875.29,0.00020994,2]
[321818551,1712535081323,-500.0,0.00020994,2]
[321818552,1712535081333,-500.0,0.00020994,2]
[321818553,1712535081342,-500.0,0.00020994,2]
[321818554,1712535081352,-500.0,0.00020994,2]
[321818555,1712535081361,-891.34,0.00020994,2]
[321818556,1712535081371,-891.34,0.00020994,2]
[321818557,1712535081381,-2541.03,0.00020994,2]
[321818558,1712535081390,-2541.03,0.00020994,2]
[321818559,1712535081400,-2541.03,0.00020994,2]
[321818560,1712535081409,-2541.03,0.00020994,2]
[321818561,1712535081418,-7248.38,0.00020994,2]
[321818562,1712535081428,-2541.03,0.00020994,2]
[321818563,1712535081437,-7248.38,0.00020994,2]
[321818564,1712535081446,-2541.03,0.00020994,2]
[321818565,1712535081456,-2541.03,0.00020994,2]
[321818566,1712535081468,-2541.12648783,0.00020994,2]
[321818567,1712535081478,-661.49,0.00020994,2]
[321818568,1712535081487,-661.49,0.00020994,2]
[321818569,1712535081497,-962.44,0.00020994,2]
[321818570,1712535081508,-500.0,0.00020994,2]
[321818571,1712535081517,-500.0,0.00020994,2]
[321818572,1712535081527,-1719.47,0.00020994,2]
[321818573,1712535081536,-1719.47,0.00020994,2]
[321818574,1712535081545,-636.92,0.00020994,2]
[321818575,1712535081555,-636.92,0.00020994,2]
[321818576,1712535081565,-636.92,0.00020994,2]
[321818577,1712535081574,-636.92,0.00020994,2]
[321818578,1712535081583,-636.92,0.00020994,2]
[321818579,1712535081593,-636.92,0.00020994,2]
[321818580,1712535081603,-636.92,0.00020994,2]
[321818581,1712535081614,-637.0202088,0.00020994,2]
[321818582,1712535081624,-500.0,0.00020994,2]
[321818583,1712535081633,-500.0,0.00020994,2]
[321818584,1712535081643,-500.0,0.00020994,2]
[321818585,1712535081653,-500.0,0.00020994,2]
[321818586,1712535081662,-500.0,0.00020994,2]
[321818587,1712535081671,-500.0,0.00020994,2]
[321818588,1712535081681,-500.0,0.00020994,2]
[321818589,1712535081690,-500.0,0.00020994,2]
[321818590,1712535081700,-500.0,0.00020994,2]
[321818591,1712535081711,-394.82315032,0.00020994,2]
[321818592,1712535081720,-500.0,0.00020994,2]
[321818593,1712535081728,-500.0,0.00020994,2]
[321818594,1712535081738,-1540.86,0.00020994,2]
[321818595,1712535081747,-500.0,0.00020994,2]
[321818596,1712535081757,-349.36553942,0.00020994,2]
[321818597,1712535081766,-733.61,0.00020994,2]
[321818598,1712535081775,-733.61,0.00020994,2]
[321818599,1712535081784,-861.16,0.00020994,2]
[321818600,1712535081794,-500.0,0.00020994,2]
[321818601,1712535081803,-500.0,0.00020994,2]
[321818602,1712535081813,-500.0,0.00020994,2]
[321818603,1712535081822,-500.0,0.00020994,2]
[321818604,1712535081832,-500.0,0.00020994,2]
[321818605,1712535081841,-562.01630595,0.00020994,2]
[321818606,1712535081851,-2324.05,0.00020994,2]
[321818607,1712535081861,-2324.05,0.00020994,2]
[321818608,1712535081872,-2324.05,0.00020994,2]
[321818609,1712535081882,-2324.05,0.00020994,2]
[321818610,1712535081891,-2324.05,0.00020994,2]
[321818611,1712535081901,-2324.05,0.00020994,2]
[321818612,1712535081912,-2324.05,0.00020994,2]
[321818613,1712535081921,-2324.10903002,0.00020994,2]
[321818614,1712535081931,-593.4,0.00020994,2]
[321818615,1712535081941,-593.4,0.00020994,2]
[321818616,1712535081951,-580.64,0.00020994,2]
[321818617,1712535081961,-3029.88,0.00020994,2]
[321818618,1712535081971,-3029.88,0.00020994,2]
[321818619,1712535081980,-540.28,0.00020994,2]
[321818620,1712535081989,-540.28,0.00020994,2]
[321818621,1712535081998,-1657.25,0.00020994,2]
[321818622,1712535082009,-1657.25,0.00020994,2]
[321818623,1712535082019,-1657.25,0.00020994,2]
[321818624,1712535082028,-1657.25,0.00020994,2]
[321818625,1712535082038,-1657.25,0.00020994,2]
[321818626,1712535082047,-1657.25,0.00020994,2]
[321818627,1712535082057,-1657.25,0.00020994,2]
[321818628,1712535082066,-1657.28841224,0.00020994,2]
[321818629,1712535082076,-6756.44,0.00020994,2]
[321818630,1712535082085,-6756.44,0.00020994,2]
[321818631,1712535082096,-759.96,0.00020994,2]
[321818632,1712535082105,-759.96,0.00020994,2]
[321818633,1712535082115,-1227.4,0.00020994,2]
[321818634,1712535082125,-4347.9,0.00020994,2]
[321818635,1712535082135,-4347.9,0.00020994,2]
[321818636,1712535082144,-4347.9,0.00020994,2]
[321818637,1712535082154,-4347.9,0.00020994,2]
[321818638,1712535082163,-4347.9,0.00020994,2]
[321818639,1712535082174,-4347.9,0.00020994,2]
[321818640,1712535082183,-4347.9,0.00020994,2]
[321818641,1712535082193,-4348.0031873,0.00020994,2]
[321818642,1712535082202,-1275.98,0.00020994,2]
[321818643,1712535082213,-1275.98,0.00020994,2]
[321818644,1712535082223,-2293.84,0.00020994,2]
[321818645,1712535082232,-2293.84,0.00020994,2]
[321818646,1712535082242,-2293.84,0.00020994,2]
[321818647,1712535082251,-2293.84,0.00020994,2]
[321818648,1712535082260,-2293.84,0.00020994,2]
[321818649,1712535082270,-2293.84,0.00020994,2]
[321818650,1712535082279,-2293.84,0.00020994,2]
[321818651,1712535082291,-1398.31,0.00020994,2]
[321818652,1712535082300,-2293.99651515,0.00020994,2]
[321818653,1712535082310,-1398.31,0.00020994,2]
[321818654,1712535082321,-734.63,0.00020994,2]
[321818655,1712535082330,-734.63,0.00020994,2]
[321818656,1712535082340,-734.63,0.00020994,2]
[321818657,1712535082350,-734.63,0.00020994,2]
[321818658,1712535082360,-734.63,0.00020994,2]
[321818659,1712535082369,-569.48,0.00020994,2]
[321818660,1712535082378,-1077.86,0.00020994,2]
[321818661,1712535082387,-1077.86,0.00020994,2]
[321818662,1712535082396,-510.77,0.00020994,2]
[321818663,1712535082405,-510.77,0.00020994,2]
[321818664,1712535082413,-1717.18,0.00020994,2]
[321818665,1712535082423,-1717.18,0.00020994,2]
[321818666,1712535082431,-1717.18,0.00020994,2]
[321818667,1712535082441,-1717.18,0.00020994,2]
[321818668,1712535082450,-1717.18,0.00020994,2]
[321818669,1712535082460,-1717.18,0.00020994,2]
[321818670,1712535082469,-1717.18,0.00020994,2]
[321818671,1712535082478,-1717.25114141,0.00020994,2]
[321818672,1712535082488,-500.0,0.00020994,2]
[321818673,1712535082498,-2416.65,0.00020994,2]
[321818674,1712535082509,-500.0,0.00020994,2]
[321818675,1712535082520,-2416.65,0.00020994,2]
[321818676,1712535082529,-1235.12,0.00020994,2]
[321818677,1712535082539,-1288.68,0.00020994,2]
[321818678,1712535082549,-1288.68,0.00020994,2]
[321818679,1712535082559,-1746.48,0.00020994,2]
[321818680,1712535082570,-1746.48,0.00020994,2]
[321818681,1712535082580,-1746.48,0.00020994,2]
[321818682,1712535082590,-1746.48,0.00020994,2]
[321818683,1712535082600,-1746.50682502,0.00020994,2]
[321818684,1712535082611,-1163.7,0.00020994,2]
[321818685,1712535082621,-1163.7,0.00020994,2]
[321818686,1712535082632,-1163.7,0.00020994,2]
[321818687,1712535082641,-1163.7,0.00020994,2]
[321818688,1712535082650,-1081.21,0.00020994,2]
[321818689,1712535082660,-1163.7,0.00020994,2]
[321818690,1712535082669,-1163.7,0.00020994,2]
[321818691,1712535082679,-1163.7,0.00020994,2]
[321818692,1712535082689,-1163.92939046,0.00020994,2]
[321818693,1712535082700,-1118.84,0.00020994,2]
[321818694,1712535082712,-1118.84,0.00020994,2]
[321818695,1712535082722,-1247.66,0.00020994,2]
[321818696,1712535082733,-1247.66,0.00020994,2]
[321818697,1712535082743,-536.12,0.00020994,2]
[321818698,1712535082755,-536.12,0.00020994,2]
[321818699,1712535082767,-536.12,0.00020994,2]
[321818700,1712535082778,-5304.16,0.00020994,2]
[321818701,1712535082789,-536.12,0.00020994,2]
[321818702,1712535082799,-5304.16,0.00020994,2]
[321818703,1712535082808,-536.24422737,0.00020994,2]
[321818704,1712535082818,-5304.16,0.00020994,2]
[321818705,1712535082828,-5304.16,0.00020994,2]
[321818706,1712535082839,-2373.37,0.00020994,2]
[321818707,1712535082850,-5304.16,0.00020994,2]
[321818708,1712535082860,-5304.16,0.00020994,2]
[321818709,1712535082871,-5304.16,0.00020994,2]
[321818710,1712535082881,-5304.20998742,0.00020994,2]
[321818711,1712535082890,-1155.6,0.00020994,2]
[321818712,1712535082900,-1155.6,0.00020994,2]
[321818713,1712535082910,-1195.89,0.00020994,2]
[321818714,1712535082920,-1195.89,0.00020994,2]
[321818715,1712535082932,-650.47,0.00020994,2]
[321818716,1712535082942,-2845.12,0.00020994,2]
[321818717,1712535082953,-650.47,0.00020994,2]
[321818718,1712535082968,-907.46,0.00020994,2]
[321818719,1712535082978,-650.47,0.00020994,2]
[321818720,1712535082987,-650.47,0.00020994,2]
[321818721,1712535082997,-907.46,0.00020994,2]
[321818722,1712535083007,-650.48992572,0.00020994,2]
[321818723,1712535083017,-907.46,0.00020994,2]
[321818724,1712535083027,-907.46,0.00020994,2]
[321818725,1712535083037,-907.67970965,0.00020994,2]
[321818726,1712535083048,-848.54,0.00020994,2]
[321818727,1712535083058,-848.54,0.00020994,2]
[321818728,1712535083069,-1836.01,0.00020994,2]
[321818729,1712535083078,-1836.01,0.00020994,2]
[321818730,1712535083088,-906.6,0.00020994,2]
[321818731,1712535083100,-906.6,0.00020994,2]
[321818732,1712535083109,-906.6,0.00020994,2]
[321818733,1712535083120,-906.6,0.00020994,2]
[321818734,1712535083130,-906.73320991,0.00020994,2]
[321818735,1712535083141,-23118.59,0.00020994,2]
[321818736,1712535083151,-500.0,0.00020994,2]
[321818737,1712535083162,-500.0,0.00020994,2]
[321818738,1712535083172,-234.22104677,0.00020994,2]
[321818739,1712535083183,-837.59,0.00020994,2]
[321818740,1712535083194,-837.59,0.00020994,2]
[321818741,1712535083204,-536.65,0.00020994,2]
[321818742,1712535083216,-536.65,0.00020994,2]
[321818743,1712535083226,-536.65,0.00020994,2]
[321818744,1712535083236,-536.65,0.00020994,2]
[321818745,1712535083246,-536.78322227,0.00020994,2]
[321818746,1712535083256,-1734.33,0.00020994,2]
[321818747,1712535083266,-1734.33,0.00020994,2]
[321818748,1712535083276,-500.0,0.00020994,2]
[321818749,1712535083286,-3794.74,0.00020994,2]
[321818750,1712535083297,-500.0,0.00020994,2]
[321818751,1712535083307,-629.41065462,0.00020994,2]